bitfinex-derivatives/quotes_BTCF0:USTF0_20250809
["timestamp","ask_amount","ask_price","bid_price","bid_amount"]
[1754721364027,1.02424793,116680.0,116670.0,0.2898212]
[1754721364630,1.02854793,116680.0,116670.0,0.1944512]
[1754721365734,1.02854793,116680.0,116670.0,0.2283812]
[1754721365926,1.02854793,116680.0,116670.0,0.2519812]
[1754721366127,1.02854793,116680.0,116670.0,0.2898212]
[1754721366934,0.50457353,116680.0,116670.0,0.2898212]
[1754721367134,1.02854793,116680.0,116670.0,0.2898212]
[1754721368022,1.02854793,116680.0,116670.0,0.5518084]
[1754721371333,0.50457353,116680.0,116670.0,0.5518084]
[1754721371534,1.02854793,116680.0,116670.0,0.5518084]
[1754721371938,1.02854793,116680.0,116670.0,0.2898212]
[1754721372333,1.02854793,116680.0,116670.0,0.11843]
[1754721372531,1.02854793,116680.0,116670.0,0.4661182]
[1754721373335,0.50457353,116680.0,116670.0,0.4661182]
[1754721373535,0.78652278,116680.0,116670.0,0.4661182]
[1754721373736,0.78652278,116680.0,116670.0,0.204131]
[1754721373939,1.04850998,116680.0,116670.0,0.4661182]
[1754721376542,1.04850998,116680.0,116670.0,0.204131]
[1754721376738,1.04850998,116680.0,116670.0,0.4661182]
[1754721376938,1.04850998,116680.0,116670.0,0.204131]
[1754721377138,1.04850998,116680.0,116670.0,0.4661182]
[1754721377938,0.52453558,116680.0,116670.0,0.4661182]
[1754721378143,1.04850998,116680.0,116670.0,0.4661182]
[1754721378344,1.04850998,116680.0,116670.0,0.204131]
[1754721378544,1.04850998,116680.0,116670.0,0.4661182]
[1754721379245,1.85918998,116680.0,116670.0,0.4661182]
[1754721380436,1.04850998,116680.0,116670.0,0.4661182]
[1754721380637,1.83918793,116680.0,116670.0,0.4661182]
[1754721380946,1.83914793,116680.0,116670.0,0.4661182]
[1754721384447,1.57716073,116680.0,116670.0,0.4661182]
[1754721385349,1.31517353,116680.0,116670.0,0.4661182]
[1754721385545,1.57716073,116680.0,116670.0,0.4661182]
[1754721386149,1.59711821,116680.0,116670.0,0.4661182]
[1754721388052,1.33513101,116680.0,116670.0,0.4661182]
[1754721388251,1.59711821,116680.0,116670.0,0.4661182]
[1754721390355,1.59711821,116680.0,116670.0,0.204131]
[1754721390555,1.59711821,116680.0,116670.0,0.8269182]
[1754721394453,1.59711821,116680.0,116670.0,0.02305]
[1754721394454,1.33513101,116680.0,116670.0,0.02305]
[1754721394850,1.85910541,116680.0,116670.0,0.02305]
[1754721395049,1.33513101,116680.0,116670.0,0.02305]
[1754721395249,1.85910541,116680.0,116670.0,0.02305]
[1754721397450,1.33513101,116680.0,116670.0,0.02305]
[1754721397851,1.85910541,116680.0,116670.0,0.02305]
[1754721401960,1.85910541,116680.0,116670.0,0.3669872]
[1754721402259,1.85910541,116680.0,116670.0,0.3811772]
[1754721404260,1.33513101,116680.0,116670.0,0.3811772]
[1754721404460,1.85910541,116680.0,116670.0,0.3811772]
[1754721404861,1.33513101,116680.0,116670.0,0.11919]
[1754721405061,1.85910541,116680.0,116670.0,0.11919]
[1754721405263,1.85910541,116680.0,116670.0,0.3811772]
[1754721406462,1.85910541,116680.0,116670.0,0.11919]
[1754721406760,1.85910541,116680.0,116670.0,0.3811772]
[1754721407260,1.85910541,116680.0,116670.0,0.11919]
[1754721407461,1.85910541,116680.0,116670.0,0.3811772]
[1754721409363,1.33513101,116680.0,116670.0,0.3811772]
[1754721409663,1.85910541,116680.0,116670.0,0.3811772]
[1754721410867,1.85910541,116680.0,116670.0,0.11919]
[1754721414766,1.33513101,116680.0,116670.0,0.11919]
[1754721414962,1.85910541,116680.0,116670.0,0.11919]
[1754721415868,1.33513101,116680.0,116670.0,0.11919]
[1754721416069,1.85910541,116680.0,116670.0,0.11919]
[1754721416867,1.85910541,116680.0,116670.0,0.105]
[1754721417266,1.33513101,116680.0,116670.0,0.105]
[1754721417464,1.85910541,116680.0,116670.0,0.105]
[1754721417665,1.85910541,116680.0,116670.0,0.11919]
[1754721418169,1.85910541,116680.0,116670.0,0.3811772]
[1754721419172,1.83914793,116680.0,116670.0,0.3811772]
[1754721419371,1.85914338,116680.0,116670.0,0.3811772]
[1754721420172,1.85914338,116680.0,116670.0,0.11919]
[1754721420372,1.85914338,116680.0,116670.0,0.3811772]
[1754721420573,1.33516898,116680.0,116670.0,0.3811772]
[1754721420774,1.85914338,116680.0,116670.0,0.3811772]
[1754721421075,0.43886848,116680.0,116670.0,0.4668783]
[1754721421276,1.14277293,116680.0,116670.0,0.8276783]
[1754721421575,0.15704994,116680.0,116670.0,1.8992655]
[1754721421765,0.06704178,116680.0,116670.0,1.8992655]
[1754721421971,0.0042,116690.0,116680.0,0.3578345]
[1754721422171,0.0042,116690.0,116680.0,1.2426089]
[1754721422371,0.08990816,116690.0,116680.0,1.2426089]
[1754721423268,0.0042,116690.0,116680.0,1.2426089]
[1754721424174,0.1062,116690.0,116680.0,1.2426089]
[1754721424972,0.1052,116690.0,116680.0,1.2426089]
[1754721425877,0.1052,116690.0,116680.0,0.7186345]
[1754721426074,0.20757134,116690.0,116680.0,1.2426089]
[1754721426674,0.20757134,116690.0,116680.0,0.7186345]
[1754721426875,0.20757134,116690.0,116680.0,1.2426089]
[1754721427075,0.32306134,116690.0,116680.0,1.2426089]
[1754721427275,0.58504854,116690.0,116680.0,0.9806217]
[1754721428977,0.32306134,116690.0,116680.0,0.9806217]
[1754721429176,0.58504854,116690.0,116680.0,0.9806217]
[1754721430773,0.32306134,116690.0,116680.0,0.9806217]
[1754721430973,0.58504854,116690.0,116680.0,0.9806217]
[1754721431375,0.32306134,116690.0,116680.0,0.9806217]
[1754721431679,0.58504854,116690.0,116680.0,0.9806217]
[1754721435470,0.58504854,116690.0,116680.0,1.2426089]
[1754721435881,0.32306134,116690.0,116680.0,1.2426089]
[1754721436077,0.58504854,116690.0,116680.0,1.2426089]
[1754721436877,0.32306134,116690.0,116680.0,1.2426089]
[1754721439580,0.58504854,116690.0,116680.0,0.40873]
[1754721439887,0.40876215,116690.0,116680.0,0.3608]
[1754721440081,0.67074935,116690.0,116680.0,0.3608]
[1754721440281,1.47970935,116690.0,116680.0,0.3834]
[1754721440482,1.21772215,116690.0,116680.0,0.3834]
[1754721440676,0.1328738,116680.0,116670.0,0.7124653]
[1754721440885,0.63181368,116680.0,116670.0,0.9970525]
[1754721441289,1.07505922,116680.0,116670.0,0.5636666]
[1754721441887,1.07505922,116680.0,116670.0,0.8256538]
[1754721442085,0.81307202,116680.0,116670.0,0.8256538]
[1754721442790,0.81307202,116680.0,116670.0,0.5636666]
[1754721442989,0.81307202,116680.0,116670.0,0.8256538]
[1754721443190,0.81307202,116680.0,116670.0,0.5646666]
[1754721443487,0.81307202,116680.0,116670.0,0.8266538]
[1754721443681,0.81507202,116680.0,116670.0,0.8256538]
[1754721443883,0.81707202,116680.0,116670.0,0.8256538]
[1754721444483,0.81707202,116680.0,116670.0,0.7399572]
[1754721444984,0.81707202,116680.0,116670.0,0.3791572]
[1754721445484,0.55508482,116680.0,116670.0,0.4648584]
[1754721445685,0.81707202,116680.0,116670.0,0.2028712]
[1754721445886,0.81707202,116680.0,116670.0,0.4648584]
[1754721447792,0.81707202,116680.0,116670.0,0.2028712]
[1754721447992,0.81707202,116680.0,116670.0,0.4648584]
[1754721448291,1.07905922,116680.0,116670.0,0.4648584]
[1754721448789,0.81707202,116680.0,116670.0,0.4648584]
[1754721450093,0.81707202,116680.0,116670.0,0.8256584]
[1754721451298,0.43960462,116680.0,116670.0,1.0876456]
[1754721451494,0.25835349,116680.0,116670.0,1.0876456]
[1754721451894,0.17265268,116680.0,116670.0,1.0876456]
[1754721452890,0.17065268,116680.0,116670.0,1.0876456]
[1754721453090,0.17265268,116680.0,116670.0,0.5636712]
[1754721453285,0.17265268,116680.0,116670.0,1.0876456]
[1754721454096,0.16865268,116680.0,116670.0,1.0886456]
[1754721454700,0.16865268,116680.0,116670.0,0.91395823]
[1754721455497,0.1,116680.0,116670.0,0.91395823]
[1754721455693,0.18806194,116690.0,116680.0,0.1324536]
[1754721455898,0.28806194,116690.0,116680.0,1.72167063]
[1754721456099,0.3737701,116690.0,116680.0,1.72167063]
[1754721456492,0.11668494,116690.0,116680.0,1.72167063]
[1754721456997,0.20337124,116690.0,116680.0,1.72167063]
[1754721457197,0.11768494,116690.0,116680.0,1.72167063]
[1754721457598,0.01768494,116690.0,116680.0,1.72167063]
[1754721459100,0.001,116690.0,116680.0,1.72167063]
[1754721459302,0.001,116690.0,116680.0,2.25762376]
[1754721459498,0.001,116690.0,116680.0,2.21371904]
[1754721460806,0.001,116690.0,116680.0,2.21471904]
[1754721461206,0.0041,116700.0,116690.0,0.1325963]
[1754721461410,0.1041,116700.0,116690.0,0.5492463]
[1754721461610,0.13290204,116700.0,116690.0,0.5492463]
[1754721462107,0.1041,116700.0,116690.0,0.89853333]
[1754721463205,0.02829,116700.0,116690.0,0.89853333]
[1754721463412,0.02829,116700.0,116690.0,0.5492463]
[1754721463609,0.12829,116700.0,116690.0,0.89853333]
[1754721464007,0.2077,116700.0,116690.0,1.3577663]
[1754721464214,0.22255,116700.0,116690.0,1.70705333]
[1754721464413,0.25191609,116700.0,116690.0,1.70805333]
[1754721464716,0.33759499,116700.0,116690.0,1.70805333]
[1754721465014,0.33759499,116700.0,116690.0,1.69472333]
[1754721465716,0.33759499,116700.0,116690.0,1.70805333]
[1754721467616,0.33759499,116700.0,116690.0,1.3587663]
[1754721467815,0.33759499,116700.0,116690.0,1.70805333]
[1754721468016,0.33759499,116700.0,116690.0,1.69472333]
[1754721468219,0.42328846,116700.0,116690.0,1.3454363]
[1754721468517,0.42328846,116700.0,116690.0,1.69472333]
[1754721468912,0.30483846,116700.0,116690.0,1.70805333]
[1754721469117,0.11915956,116700.0,116690.0,1.70805333]
[1754721469416,0.24334956,116700.0,116690.0,1.70805333]
[1754721470016,0.32902846,116700.0,116690.0,1.70805333]
[1754721471520,0.22902846,116700.0,116690.0,1.70805333]
[1754721472418,0.32902846,116700.0,116690.0,1.70805333]
[1754721472815,0.1041,116700.0,116690.0,1.70805333]
[1754721473217,0.0041,116700.0,116690.0,1.70805333]
[1754721475117,0.1041,116700.0,116690.0,1.70805333]
[1754721475415,0.12829,116700.0,116690.0,1.70805333]
[1754721475830,0.02829,116700.0,116690.0,1.70805333]
[1754721476324,0.0041,116700.0,116690.0,1.70805333]
[1754721477713,0.0041,116700.0,116690.0,1.3587663]
[1754721477915,0.0041,116700.0,116690.0,1.37644463]
[1754721479721,0.02419,116710.0,116690.0,1.54781263]
[1754721479922,0.12419,116710.0,116700.0,0.520089]
[1754721480226,0.12419,116710.0,116700.0,0.86937603]
[1754721483330,0.1,116710.0,116700.0,0.86937603]
[1754721483528,0.12419,116710.0,116700.0,0.86937603]
[1754721483724,0.1,116710.0,116700.0,0.86937603]
[1754721484123,0.02419,116710.0,116700.0,0.6489221]
[1754721484324,0.02419,116710.0,116700.0,0.99820913]
[1754721484828,0.02419,116710.0,116700.0,1.04072913]
[1754721487632,0.02419,116710.0,116700.0,1.04172913]
[1754721490434,0.12072,116710.0,116700.0,1.04172913]
[1754721490937,0.12072,116710.0,116700.0,1.11876004]
[1754721493238,0.2063915,116710.0,116700.0,1.57743301]
[1754721493433,0.2063915,116710.0,116700.0,1.5004021]
[1754721493737,0.2063915,116710.0,116700.0,1.84968913]
[1754721494040,0.2063915,116710.0,116700.0,1.85138913]
[1754721495640,0.2063915,116710.0,116700.0,1.5021021]
[1754721495841,0.2063915,116710.0,116700.0,1.85138913]
[1754721496641,0.2063915,116710.0,116700.0,1.5021021]
[1754721496838,0.2063915,116710.0,116700.0,1.85138913]
[1754721498441,0.2063915,116710.0,116700.0,1.5021021]
[1754721498638,0.2063915,116710.0,116700.0,1.85138913]
[1754721499644,0.2063915,116710.0,116700.0,1.5021021]
[1754721499844,0.2063915,116710.0,116700.0,1.85138913]
[1754721500645,0.2063915,116710.0,116700.0,1.5021021]
[1754721500845,0.2063915,116710.0,116700.0,1.85138913]
[1754721502648,0.2063915,116710.0,116700.0,1.5021021]
[1754721502844,0.2063915,116710.0,116700.0,1.85138913]
[1754721503442,0.2063915,116710.0,116700.0,1.5021021]
[1754721503841,0.2063915,116710.0,116700.0,1.85138913]
[1754721504048,0.1085715,116710.0,116700.0,1.85138913]
[1754721504744,0.0229,116710.0,116700.0,1.85138913]
[1754721506947,0.004,116720.0,116710.0,0.1627415]
[1754721507252,0.03883,116730.0,116710.0,1.17968576]
[1754721507455,0.11956,116730.0,116720.0,1.58493079]
[1754721507655,0.3052169,116730.0,116720.0,1.58493079]
[1754721507848,0.3052169,116730.0,116720.0,1.2542242]
[1754721508043,0.39089201,116730.0,116720.0,1.2542242]
[1754721508441,0.41609432,116730.0,116720.0,1.2542242]
[1754721509852,0.41709432,116730.0,116720.0,1.2542242]
[1754721510452,0.41709432,116730.0,116720.0,1.60351123]
[1754721512651,0.41909432,116730.0,116720.0,1.60351123]
[1754721513048,0.41709432,116730.0,116720.0,1.60351123]
[1754721513253,0.41909432,116730.0,116720.0,1.2542242]
[1754721513454,0.41909432,116730.0,116720.0,1.60351123]
[1754721516360,0.41909432,116730.0,116720.0,1.60426123]
[1754721519061,0.33343742,116730.0,116720.0,1.60426123]
[1754721522464,0.33343742,116730.0,116720.0,1.96506123]
[1754721525169,0.33143742,116730.0,116720.0,1.96506123]
[1754721525571,0.33043742,116730.0,116720.0,1.96506123]
[1754721525870,0.33043742,116730.0,116720.0,1.6157742]
[1754721526070,0.33043742,116730.0,116720.0,1.96506123]
[1754721531775,0.33043742,116730.0,116720.0,1.6157742]
[1754721531971,0.33043742,116730.0,116720.0,1.96506123]
[1754721532273,0.28257742,116730.0,116720.0,1.6157742]
[1754721532474,0.28257742,116730.0,116720.0,1.96506123]
[1754721532674,0.28257742,116730.0,116720.0,2.1393149]
[1754721532870,0.18567511,116730.0,116720.0,2.1393149]
[1754721533078,0.1,116730.0,116720.0,2.40108525]
[1754721533472,0.1,116730.0,116720.0,2.1393149]
[1754721534773,0.1,116730.0,116720.0,1.96472787]
[1754721538978,0.1,116730.0,116720.0,1.96572787]
[1754721539479,0.02883015,116740.0,116720.0,2.13630157]
[1754721539675,0.05330015,116740.0,116730.0,0.64625057]
[1754721543280,0.05330015,116740.0,116730.0,0.64725057]
[1754721546572,0.05330015,116740.0,116730.0,0.64893057]
[1754721547679,0.0038,116740.0,116730.0,0.64893057]
[1754721548373,0.0038,116740.0,116730.0,0.72596148]
[1754721548580,0.0038,116740.0,116730.0,0.37700781]
[1754721550776,0.0229,116750.0,116730.0,0.54831691]
[1754721550982,0.11660197,116760.0,116740.0,1.4247039]
[1754721551178,0.21660197,116760.0,116750.0,0.43459577]
[1754721551481,0.29316197,116760.0,116750.0,0.43459577]
[1754721551676,0.29316197,116760.0,116750.0,0.79539577]
[1754721552290,0.31817352,116760.0,116750.0,0.79539577]
[1754721553086,0.24571352,116760.0,116750.0,0.79539577]
[1754721553291,0.32017352,116760.0,116750.0,0.79539577]
[1754721553478,0.13111155,116760.0,116750.0,0.79539577]
[1754721553786,0.15201155,116760.0,116750.0,0.79539577]
[1754721553983,0.05201155,116760.0,116750.0,0.79539577]
[1754721554486,0.15201155,116760.0,116750.0,0.79539577]
[1754721556385,0.14791155,116760.0,116750.0,0.79639577]
[1754721559690,0.14791155,116760.0,116750.0,0.4474421]
[1754721559992,0.18282155,116760.0,116750.0,0.79639577]
[1754721560688,0.18282155,116760.0,116750.0,0.70907577]
[1754721561186,0.14791155,116760.0,116750.0,0.70907577]
[1754721562089,0.22472155,116760.0,116750.0,0.70907577]
[1754721563891,0.24635155,116760.0,116750.0,0.70907577]
[1754721564493,0.24635155,116760.0,116750.0,1.06987577]
[1754721570695,0.33198625,116760.0,116750.0,1.06987577]
[1754721570887,0.85525359,116760.0,116750.0,1.2539621]
[1754721571093,0.85525359,116760.0,116750.0,0.8931621]
[1754721573200,0.85525359,116760.0,116750.0,0.0866421]
[1754721574001,0.85525359,116760.0,116750.0,0.0856421]
[1754721574397,0.94090302,116760.0,116750.0,0.0856421]
[1754721575398,0.94190302,116760.0,116750.0,0.0856421]
[1754721577407,0.59463465,116760.0,116750.0,0.71230577]
[1754721577600,0.68026935,116760.0,116750.0,0.71230577]
[1754721578601,0.33300098,116760.0,116750.0,0.4506721]
[1754721579106,0.32986098,116760.0,116750.0,0.4506721]
[1754721579306,0.32986098,116760.0,116750.0,0.7995587]
[1754721579808,0.32886098,116760.0,116750.0,0.7995587]
[1754721580805,0.41449578,116760.0,116750.0,0.7995587]
[1754721581007,0.41649578,116760.0,116750.0,0.7995587]
[1754721582109,0.41449578,116760.0,116750.0,0.7995587]
[1754721583103,0.36680578,116760.0,116750.0,0.7995587]
[1754721583308,0.41449578,116760.0,116750.0,0.7995587]
[1754721584009,0.32886098,116760.0,116750.0,0.7995587]
[1754721591013,0.32886098,116760.0,116750.0,0.4506721]
[1754721591214,0.32886098,116760.0,116750.0,0.7995587]
[1754721593414,0.32886098,116760.0,116750.0,0.4506721]
[1754721596915,0.32886098,116760.0,116750.0,0.7995587]
[1754721598716,0.32886098,116760.0,116750.0,0.71232911]
[1754721598717,0.59051799,116760.0,116750.0,0.71232911]
[1754721601521,0.32886098,116760.0,116750.0,0.71232911]
[1754721601722,0.59051799,116760.0,116750.0,0.71232911]
[1754721602022,0.32886098,116760.0,116750.0,0.71232911]
[1754721602219,0.59051799,116760.0,116750.0,0.71232911]
[1754721602516,0.48915856,116760.0,116750.0,0.4506721]
[1754721602727,0.24321155,116760.0,116750.0,0.71232911]
[1754721602927,0.19552155,116760.0,116750.0,1.05101703]
[1754721603621,0.19552155,116760.0,116750.0,0.78936002]
[1754721604322,0.19552155,116760.0,116750.0,0.71232911]
[1754721605217,0.22750155,116760.0,116750.0,0.71332911]
[1754721605716,0.14791155,116760.0,116750.0,0.71332911]
[1754721606323,0.14791155,116760.0,116750.0,0.79036002]
[1754721606828,0.14791155,116760.0,116750.0,0.97498612]
[1754721607228,0.14791155,116760.0,116750.0,0.69121703]
[1754721607418,0.14791155,116760.0,116750.0,1.05201703]
[1754721608112,0.14791155,116760.0,116750.0,0.97498612]
[1754721608316,0.14791155,116760.0,116750.0,0.71332911]
[1754721609125,0.14791155,116760.0,116750.0,0.4516721]
[1754721609426,0.14791155,116760.0,116750.0,0.71332911]
[1754721611826,0.1,116760.0,116750.0,1.05201703]
[1754721612015,0.1,116760.0,116750.0,0.97498612]
[1754721612219,0.1,116760.0,116750.0,1.05206976]
[1754721612417,0.02816,116770.0,116760.0,0.78660103]
[1754721612621,0.02816,116770.0,116760.0,1.95398103]
[1754721612824,0.02816,116770.0,116760.0,1.77795872]
[1754721613213,0.02816,116770.0,116760.0,1.85499114]
[1754721613926,0.02816,116770.0,116760.0,1.87250864]
[1754721615127,0.04965727,116770.0,116760.0,1.87250864]
[1754721615824,0.04965727,116770.0,116760.0,1.34919462]
[1754721616126,0.04965727,116770.0,116760.0,1.87250864]
[1754721616521,0.04965727,116770.0,116760.0,1.79547622]
[1754721617524,0.18387727,116770.0,116760.0,1.79547622]
[1754721617725,0.24818727,116770.0,116760.0,1.79547622]
[1754721619525,0.48301428,116770.0,116760.0,1.2721622]
[1754721619730,0.50984428,116770.0,116760.0,1.53381921]
[1754721619935,0.50984428,116770.0,116760.0,1.2721622]
[1754721620231,0.85712859,116770.0,116760.0,0.8908747]
[1754721620435,0.59147158,116770.0,116760.0,0.8908747]
[1754721621527,0.59347158,116770.0,116760.0,0.8908747]
[1754721622329,0.59347158,116770.0,116760.0,0.8918947]
[1754721622835,0.68171212,116770.0,116760.0,0.8918947]
[1754721623239,0.33281457,116770.0,116760.0,0.8918947]
[1754721623440,0.68171212,116770.0,116760.0,0.8918947]
[1754721624134,0.68171212,116770.0,116760.0,0.8935247]
[1754721624738,0.68171202,116770.0,116760.0,0.8935247]
[1754721627439,0.33281447,116770.0,116760.0,0.8935247]
[1754721627640,0.68171202,116770.0,116760.0,0.8935247]
[1754721644761,0.59446603,116770.0,116760.0,1.15517626]
[1754721649166,0.59446603,116770.0,116760.0,0.0882847]
[1754721649361,0.2076944,116760.0,116750.0,0.16267182]
[1754721649566,1.35344908,116760.0,116750.0,0.0856394]
[1754721649859,1.63733784,116760.0,116750.0,0.0856394]
[1754721650065,0.1337317,116750.0,116740.0,0.3425891]
[1754721650265,0.83100482,116750.0,116740.0,0.2569403]
[1754721650663,0.91665425,116750.0,116740.0,0.2569403]
[1754721650863,0.65500269,116750.0,116740.0,0.2569403]
[1754721651268,0.65500269,116750.0,116740.0,0.2588503]
[1754721652064,0.65500269,116750.0,116740.0,0.0875527]
[1754721652253,0.65500269,116750.0,116740.0,0.0906027]
[1754721652660,0.65500269,116750.0,116740.0,0.0916027]
[1754721652661,0.74235627,116750.0,116740.0,0.0916027]
[1754721653065,0.74235627,116750.0,116740.0,0.00596]
[1754721653468,0.74235627,116750.0,116740.0,0.0916085]
[1754721653669,0.74235627,116750.0,116740.0,0.0866485]
[1754721653962,1.10315627,116750.0,116740.0,0.001]
[1754721654470,0.75415113,116750.0,116740.0,0.001]
[1754721654671,1.10315627,116750.0,116740.0,0.001]
[1754721658173,0.75415113,116750.0,116740.0,0.001]
[1754721658470,1.10315627,116750.0,116740.0,0.001]
[1754721659172,0.1337383,116740.0,116730.0,1.423994]
[1754721659360,0.3077083,116740.0,116730.0,1.423994]
[1754721659564,0.3077083,116740.0,116730.0,1.3383381]
[1754721660974,0.3077083,116740.0,116730.0,1.68734324]
[1754721662966,0.3077083,116740.0,116730.0,1.3383381]
[1754721663170,0.3077083,116740.0,116730.0,1.68734324]
[1754721666679,0.3077083,116740.0,116730.0,1.3383381]
[1754721667171,0.3077083,116740.0,116730.0,1.16703]
[1754721667478,0.65671344,116740.0,116730.0,0.80432]
[1754721667873,0.65671344,116740.0,116730.0,0.80562]
[1754721668077,0.65671344,116740.0,116730.0,0.8077]
[1754721668374,0.65671344,116740.0,116730.0,0.8933562]
[1754721668572,0.65671344,116740.0,116730.0,0.0877362]
[1754721668875,0.65671344,116740.0,116730.0,0.8932762]
[1754721669076,0.3077083,116740.0,116730.0,0.8932762]
[1754721669667,0.3077083,116740.0,116730.0,1.2540762]
[1754721673377,0.2092383,116740.0,116730.0,1.2540762]
[1754721673573,0.12359,116740.0,116730.0,1.60308134]
[1754721674067,0.3813149,116750.0,116730.0,1.85874524]
[1754721674267,0.2956671,116750.0,116740.0,0.79846404]
[1754721674475,0.45857121,116750.0,116740.0,0.79846404]
[1754721674674,0.48075121,116750.0,116740.0,0.97283296]
[1754721675380,0.48175121,116750.0,116740.0,0.97283296]
[1754721675780,0.48375121,116750.0,116740.0,0.97283296]
[1754721676080,0.74543824,116750.0,116740.0,0.97283296]
[1754721676881,0.48375121,116750.0,116740.0,0.79837767]
[1754721677183,0.35995121,116750.0,116740.0,0.79837767]
[1754721677378,0.12738,116750.0,116740.0,0.79837767]
[1754721678075,0.12738,116750.0,116740.0,0.4494589]
[1754721678279,0.12738,116750.0,116740.0,0.79837767]
[1754721678782,0.2130216,116750.0,116740.0,0.79837767]
[1754721679177,0.12738,116750.0,116740.0,0.79837767]
[1754721681075,0.2405116,116750.0,116740.0,0.79837767]
[1754721681279,0.2742016,116750.0,116740.0,0.79837767]
[1754721681585,0.2892616,116750.0,116740.0,0.79837767]
[1754721681779,0.3094416,116750.0,116740.0,0.4494589]
[1754721682084,0.65836037,116750.0,116740.0,0.0886589]
[1754721683582,0.3094416,116750.0,116740.0,0.0886589]
[1754721684684,0.3104416,116750.0,116740.0,0.0886589]
[1754721685281,0.3124416,116750.0,116740.0,0.0886589]
[1754721686684,0.66136037,116750.0,116740.0,0.0886589]
[1754721688485,0.3124416,116750.0,116740.0,0.0886589]
[1754721688789,0.3124416,116750.0,116740.0,0.79837767]
[1754721689388,0.3124416,116750.0,116740.0,0.4494589]
[1754721689990,0.2268,116750.0,116740.0,0.4494589]
[1754721691090,0.17705,116750.0,116740.0,0.79837767]
[1754721691286,0.2268,116750.0,116740.0,0.79837767]
[1754721691991,0.2268,116750.0,116740.0,0.4494589]
[1754721692191,0.2258,116750.0,116740.0,0.79837767]
[1754721692490,0.3124416,116750.0,116740.0,0.79837767]
[1754721692687,0.3124416,116750.0,116740.0,0.4494589]
[1754721692988,0.3124416,116750.0,116740.0,0.79837767]
[1754721693189,0.3114416,116750.0,116740.0,0.79837767]
[1754721693492,0.2258,116750.0,116740.0,0.79837767]
[1754721694585,0.2238,116750.0,116740.0,0.79837767]
[1754721694789,0.3094416,116750.0,116740.0,0.79837767]
[1754721696391,0.3094416,116750.0,116740.0,0.4494589]
[1754721697686,0.3124416,116750.0,116740.0,0.79837767]
[1754721699992,0.3124416,116750.0,116740.0,0.43757767]
[1754721700198,0.3124416,116750.0,116740.0,0.79837767]
[1754721704692,0.57414226,116750.0,116740.0,0.71115956]
[1754721706396,0.2268,116750.0,116740.0,0.71115956]
[1754721706697,0.48850066,116750.0,116740.0,0.97286022]
[1754721707688,0.48750066,116750.0,116740.0,0.97286022]
[1754721707895,0.57414216,116750.0,116740.0,0.97286022]
[1754721708096,0.48850066,116750.0,116740.0,0.97286022]
[1754721709295,0.48750066,116750.0,116740.0,0.97286022]
[1754721709801,0.48550066,116750.0,116740.0,0.97286022]
[1754721710704,0.57114216,116750.0,116740.0,0.97286022]
[1754721712096,0.3094415,116750.0,116740.0,0.97286022]
[1754721712704,0.2238,116750.0,116740.0,0.97286022]
[1754721714008,0.2238,116750.0,116740.0,1.04994049]
[1754721714510,0.3094415,116750.0,116740.0,1.04994049]
[1754721715414,0.57114216,116750.0,116740.0,1.04994049]
[1754721716520,0.48550066,116750.0,116740.0,1.04994049]
[1754721719020,0.57114216,116750.0,116740.0,1.04994049]
[1754721719421,0.3094415,116750.0,116740.0,1.04994049]
[1754721719821,0.57114216,116750.0,116740.0,1.04994049]
[1754721720522,0.57114216,116750.0,116740.0,0.78823983]
[1754721722924,0.3094415,116750.0,116740.0,0.78823983]
[1754721723124,0.57114216,116750.0,116740.0,0.78823983]
[1754721723523,0.57114216,116750.0,116740.0,0.52653917]
[1754721723819,0.57114216,116750.0,116740.0,0.78823983]
[1754721724024,0.57101216,116750.0,116740.0,0.78823983]
[1754721724224,0.3093115,116750.0,116740.0,0.78823983]
[1754721724423,0.3093115,116750.0,116740.0,1.04994049]
[1754721725324,0.22367,116750.0,116740.0,1.04994049]
[1754721725625,0.3093115,116750.0,116740.0,1.04994049]
[1754721726125,0.22367,116750.0,116740.0,1.04994049]
[1754721726625,0.3093115,116750.0,116740.0,1.04994049]
[1754721729126,0.3093115,116750.0,116740.0,0.68914049]
[1754721729330,0.3093115,116750.0,116740.0,1.04994049]
[1754721729832,0.22367,116750.0,116740.0,1.04994049]
[1754721730730,0.12438,116750.0,116740.0,1.04994049]
[1754721731130,0.02438,116750.0,116740.0,1.04994049]
[1754721731333,0.02438,116750.0,116740.0,0.52653917]
[1754721731630,0.02438,116750.0,116740.0,1.04994049]
[1754721732031,0.12259,116750.0,116740.0,1.04994049]
[1754721733532,0.12259,116750.0,116740.0,1.05094049]
[1754721738142,0.12259,116750.0,116740.0,0.52753917]
[1754721738343,0.38429066,116750.0,116740.0,0.78923983]
[1754721738643,0.38429066,116750.0,116740.0,1.05094049]
[1754721739342,0.46993226,116750.0,116740.0,1.05094049]
[1754721739842,0.46993226,116750.0,116740.0,0.78923983]
[1754721741234,0.2082316,116750.0,116740.0,0.78923983]
[1754721741432,0.46993226,116750.0,116740.0,0.78923983]
[1754721742842,0.46993226,116750.0,116740.0,0.52753917]
[1754721743044,0.46993226,116750.0,116740.0,0.78923983]
[1754721743244,0.56993226,116750.0,116740.0,0.78923983]
[1754721746939,0.3082316,116750.0,116740.0,0.78923983]
[1754721747140,0.56993226,116750.0,116740.0,0.78923983]
[1754721749043,0.3082316,116750.0,116740.0,0.78923983]
[1754721749246,0.46993226,116750.0,116740.0,0.78923983]
[1754721749547,0.46993226,116750.0,116740.0,1.05094049]
[1754721751359,0.46993226,116750.0,116740.0,0.78923983]
[1754721755149,0.46993226,116750.0,116740.0,0.71215956]
[1754721756357,0.2082316,116750.0,116740.0,0.71215956]
[1754721756549,0.46993226,116750.0,116740.0,0.71215956]
[1754721757551,0.47157226,116750.0,116740.0,0.71215956]
[1754721758960,0.47157226,116750.0,116740.0,0.4504589]
[1754721759457,0.47157226,116750.0,116740.0,0.71215956]
[1754721762160,0.47157226,116750.0,116740.0,0.4504589]
[1754721762459,0.47157226,116750.0,116740.0,0.71215956]
[1754721762653,0.57157226,116750.0,116740.0,0.71215936]
[1754721764560,0.57157226,116750.0,116740.0,0.71099936]
[1754721764760,0.57157226,116750.0,116740.0,0.70914936]
[1754721764956,0.57157226,116750.0,116740.0,0.78622963]
[1754721766160,0.57157226,116750.0,116740.0,0.70914936]
[1754721766461,0.57157226,116750.0,116740.0,0.78622963]
[1754721766966,0.57157226,116750.0,116740.0,0.52452897]
[1754721767257,0.57157226,116750.0,116740.0,0.78622963]
[1754721767762,0.57157226,116750.0,116740.0,0.52452897]
[1754721768063,0.57157226,116750.0,116740.0,0.34834936]
[1754721768260,0.57157226,116750.0,116740.0,0.0866487]
[1754721768463,0.57157226,116750.0,116740.0,0.42542963]
[1754721769767,0.57157226,116750.0,116740.0,0.16372897]
[1754721769957,0.57157226,116750.0,116740.0,0.96720897]
[1754721770262,0.57157226,116750.0,116740.0,1.22890963]
[1754721770968,0.57257226,116750.0,116740.0,1.22890963]
[1754721771267,0.57457226,116750.0,116740.0,1.15082936]